bitfinex-derivatives/quotes_ETHF0:USTF0_20250110
["timestamp","ask_amount","ask_price","bid_price","bid_amount"]
[1736505085643,3.2078,3302.1,3301.7,0.4368]
[1736505085644,0.30287,3302.0,3301.7,0.4368]
[1736505086045,0.30285,3302.1,3301.8,0.4581]
[1736505086446,1.197,3302.3,3301.9,0.30286]
[1736505086747,0.30299,3300.5,3300.4,3.86688109]
[1736505086948,0.30297,3300.8,3300.4,4.77078109]
[1736505087144,3.2078,3300.9,3300.5,1.85957935]
[1736505087642,3.2078,3300.9,3300.8,2.16254935]
[1736505088048,3.51073,3301.3,3300.9,0.30296]
[1736505088254,0.30294,3301.1,3301.0,0.8797]
[1736505090259,0.30297,3300.8,3300.7,0.00118708]
[1736505090446,3.51077,3300.8,3300.7,0.00118708]
[1736505091556,3.92497,3300.8,3300.7,0.00118708]
[1736505091744,0.30295,3301.0,3300.7,0.00118708]
[1736505091942,3.51077,3300.8,3300.7,0.00118708]
[1736505096449,3.92547,3300.8,3300.7,0.00118708]
[1736505096844,3.97367995,3300.8,3300.7,0.00118708]
[1736505097052,8.97367995,3300.8,3300.7,0.00118708]
[1736505097553,3.97367995,3300.8,3300.7,0.00118708]
[1736505099453,3.9736727,3300.8,3300.7,0.00118708]
[1736505102559,8.9736727,3300.8,3300.7,0.00118708]
[1736505102758,11.88467556,3300.8,3300.7,0.00118708]
[1736505103058,11.93287982,3300.8,3300.7,0.00118708]
[1736505103762,6.51817982,3300.8,3300.7,0.00118708]
[1736505103962,7.76917982,3300.8,3300.7,0.00118708]
[1736505104853,7.76918097,3300.8,3300.7,0.00118708]
[1736505107061,6.51818097,3300.8,3300.7,0.00118708]
[1736505107254,7.76918097,3300.8,3300.7,0.00118708]
[1736505107454,4.85818097,3300.8,3300.7,0.00118708]
[1736505107757,3.60717323,3300.8,3300.7,0.00118708]
[1736505108058,4.85817323,3300.8,3300.7,0.00118708]
[1736505110260,4.76177,3300.8,3300.7,0.00118708]
[1736505110453,4.80997006,3300.8,3300.7,0.00118708]
[1736505111050,4.80997004,3300.8,3300.7,0.00118708]
[1736505113059,4.76177,3300.8,3300.7,0.00118708]
[1736505113260,4.8099693,3300.8,3300.7,0.00118708]
[1736505115861,4.80996903,3300.8,3300.7,0.00118708]
[1736505116757,5.0556807,3300.8,3300.7,0.00118708]
[1736505118665,4.80997718,3300.8,3300.7,0.00118708]
[1736505119365,4.80997646,3300.8,3300.7,0.00118708]
[1736505120955,4.76177,3300.8,3300.7,0.00118708]
[1736505121161,4.80997648,3300.8,3300.7,0.00118708]
[1736505121963,4.80997244,3300.8,3300.7,0.00118708]
[1736505124960,3.55897244,3300.8,3300.7,0.00118708]
[1736505125162,3.2078,3301.2,3300.7,0.00118708]
[1736505125462,3.2078,3301.2,3300.8,1.85957935]
[1736505125666,2.07593,3301.2,3300.8,2.16253935]
[1736505125864,3.2078,3301.6,3300.8,1.85957935]
[1736505126168,0.3029,3301.6,3301.4,1.85957935]
[1736505126364,22.52563035,3301.8,3301.4,1.85957935]
[1736505126962,0.30288,3301.7,3301.4,1.85957935]
[1736505127662,1.268,3302.2,3301.5,3.2078]
[1736505127864,0.30285,3302.1,3301.5,3.5107]
[1736505128062,0.30287,3302.0,3301.5,3.5107]
[1736505128360,0.30288,3301.8,3301.5,3.2078]
[1736505129072,0.30288,3301.8,3301.6,0.4407]
[1736505129364,0.30288,3301.7,3301.6,1.2006]
[1736505137164,0.30287,3301.9,3301.7,0.30288]
[1736505137670,0.30287,3301.9,3301.6,1.2006]
[1736505137971,0.30287,3301.9,3301.8,0.30288]
[1736505138268,0.30285,3302.1,3301.9,0.30286]
[1736505138475,3.2078,3302.6,3302.0,3.51065]
[1736505138670,3.2078,3302.6,3302.0,3.2078]
[1736505138865,3.2078,3302.6,3302.0,5.06737935]
[1736505139066,3.5106,3302.6,3302.4,0.30282]
[1736505139268,3.5106,3302.6,3302.5,0.8811]
[1736505139670,0.3028,3302.6,3302.5,0.8811]
[1736505139974,0.3028,3302.7,3302.5,0.8811]
[1736505140379,0.4772,3303.0,3302.5,0.8811]
[1736505140568,0.3028,3302.7,3302.5,0.8811]
[1736505140875,0.3028,3302.6,3302.5,0.8811]
[1736505141876,0.3028,3302.6,3302.5,0.4485]
[1736505143076,1.7442,3303.0,3302.5,0.4485]
[1736505143376,0.30279,3302.7,3302.5,0.7509]
[1736505144276,0.3028,3302.6,3302.5,0.7509]
[1736505144579,1.7442,3303.0,3302.5,0.7509]
[1736505144769,0.3028,3302.7,3302.5,0.7509]
[1736505145971,1.7442,3303.0,3302.5,0.4485]
[1736505145972,0.3028,3302.6,3302.5,0.4485]
[1736505146670,0.3028,3302.7,3302.5,0.4485]
[1736505146875,0.30279,3302.7,3302.5,0.4485]
[1736505147270,0.3028,3302.6,3302.5,0.4485]
[1736505147666,2.33677935,3303.0,3302.5,0.4485]
[1736505148073,0.3028,3302.7,3302.5,0.4485]
[1736505148579,0.3028,3302.6,3302.5,0.4485]
[1736505151878,0.30281,3302.5,3302.4,3.2078]
[1736505152170,0.30281,3302.5,3302.3,3.2078]
[1736505153172,3.685,3303.0,3302.3,3.2078]
[1736505153379,0.30279,3302.8,3302.4,0.30282]
[1736505153579,0.30279,3302.7,3302.4,0.30282]
[1736505153877,0.30279,3302.8,3302.5,0.30281]
[1736505154076,0.30278,3302.9,3302.6,0.3028]
[1736505154774,0.30278,3302.8,3302.5,0.30281]
[1736505155171,0.30278,3302.9,3302.5,0.30281]
[1736505155373,0.30279,3302.8,3302.5,0.30281]
[1736505155774,0.30278,3302.9,3302.6,0.3028]
[1736505156278,0.30279,3302.7,3302.5,0.30281]
[1736505156475,0.4772,3303.0,3302.5,0.30281]
[1736505156781,0.4772,3303.0,3302.5,0.3028]
[1736505156981,0.3028,3302.7,3302.5,0.3028]
[1736505157376,0.4772,3303.0,3302.5,0.3028]
[1736505157577,0.3028,3302.7,3302.5,0.3028]
[1736505157776,0.4772,3303.0,3302.5,0.3028]
[1736505157981,0.3028,3302.6,3302.5,0.3028]
[1736505160576,0.3028,3302.7,3302.6,0.30279]
[1736505160879,0.30278,3302.9,3302.8,0.30278]
[1736505161481,0.30278,3302.8,3302.7,3.51059]
[1736505164180,0.4772,3303.0,3302.7,3.2078]
[1736505164382,0.30278,3302.9,3302.8,0.30278]
[1736505164677,0.4408,3303.2,3302.7,3.2078]
[1736505164882,0.74355,3303.2,3303.1,0.30276]
[1736505165876,0.4448,3303.3,3303.2,0.30274]
[1736505165877,0.30274,3303.3,3303.2,0.30274]
[1736505167983,0.30275,3303.2,3303.1,0.30275]
[1736505168481,0.30274,3303.3,3303.2,0.30274]
[1736505168682,0.75481,3303.6,3303.5,0.30272]
[1736505168881,0.75481,3303.6,3303.5,2.16229935]
[1736505169978,0.4521,3303.6,3303.5,2.16229935]
[1736505171678,3.51047,3304.1,3303.9,0.30268]
[1736505171880,0.92,3304.0,3303.9,0.30268]
[1736505175276,1.22267,3304.0,3303.9,0.30268]
[1736505175684,0.92,3304.0,3303.9,0.30268]
[1736505175880,3.2078,3304.1,3303.8,1.85957935]
[1736505176084,0.30264,3304.4,3304.1,0.30266]
[1736505176280,1.67633,3304.5,3304.3,0.30264]
[1736505176889,0.9277,3304.5,3304.4,0.30264]
[1736505177087,0.9277,3304.5,3304.4,5.37001935]
[1736505177297,0.4587,3304.5,3304.4,5.37001935]
[1736505179392,0.76133,3304.5,3304.4,5.06737935]
[1736505179587,0.76133,3304.5,3304.4,3.2078]
[1736505181494,0.4587,3304.5,3304.4,3.51044]
[1736505182188,0.4697,3304.8,3304.6,0.30261]
[1736505182189,0.77231,3304.8,3304.6,0.30261]
[1736505182390,0.77231,3304.8,3304.7,0.30261]
[1736505182585,0.4697,3304.8,3304.7,0.30261]
[1736505182983,0.4616,3305.0,3304.7,0.30261]
[1736505183282,0.3026,3304.8,3304.7,0.30261]
[1736505183485,0.3026,3304.9,3304.7,0.30261]
[1736505183688,0.3026,3304.9,3304.8,0.3026]
[1736505184294,0.4616,3305.0,3304.9,0.30259]
[1736505184491,0.30256,3305.3,3304.9,1.9109]
[1736505184696,0.4536,3305.4,3305.0,1.85957935]
[1736505184990,0.4536,3305.4,3305.1,0.30257]
[1736505185186,0.30255,3305.3,3305.1,0.30257]
[1736505185385,0.4536,3305.4,3305.0,1.85957935]
[1736505185592,0.75615,3305.4,3305.3,0.30255]
[1736505185786,0.30255,3305.4,3305.3,0.30255]
[1736505186293,0.9091,3305.5,3305.4,0.30255]
[1736505186691,0.30255,3305.4,3305.3,1.85957935]
[1736505186888,0.9091,3305.5,3305.0,1.85957935]
[1736505187190,0.30255,3305.4,3304.9,1.75659]
[1736505187396,0.9091,3305.5,3304.9,1.454]
[1736505187598,0.30258,3305.0,3304.9,1.454]
[1736505187895,0.9091,3305.5,3304.9,1.454]
[1736505188296,1.85957935,3305.3,3304.8,3.2078]
[1736505188498,0.30259,3304.9,3304.8,3.2078]
[1736505190699,0.30259,3305.0,3304.8,3.5104]
[1736505190887,0.30259,3304.9,3304.8,3.2078]
[1736505191093,0.78029,3304.9,3304.8,3.2078]
[1736505191697,0.30262,3304.6,3304.4,3.51043]
[1736505191902,0.30261,3304.7,3304.5,0.30263]
[1736505192198,0.30261,3304.7,3304.4,3.2078]
[1736505192407,0.30261,3304.7,3304.6,0.30262]
[1736505192613,0.30262,3304.7,3304.5,0.30263]
[1736505192910,0.474,3304.8,3304.5,0.30263]
[1736505193105,0.30262,3304.6,3304.5,0.30263]
[1736505193304,0.30262,3304.7,3304.6,0.30261]
[1736505194612,0.77661,3304.8,3304.7,0.30261]
[1736505194810,0.474,3304.8,3304.7,0.30261]
[1736505195510,0.7803,3304.9,3304.6,1.85957935]
[1736505195714,0.4777,3304.9,3304.8,3.5104]
[1736505196105,0.76757,3305.2,3305.1,0.30257]
[1736505196403,0.30254,3305.5,3305.4,0.30254]
[1736505197218,0.30255,3305.3,3305.2,0.30256]
[1736505198706,3.2078,3305.6,3304.9,2.16167935]
[1736505198902,0.30255,3305.4,3305.3,0.30255]
[1736505199410,0.30255,3305.4,3305.2,0.30256]
[1736505199613,0.4574,3305.3,3305.2,0.30256]
[1736505203103,0.30259,3304.9,3304.8,5.3967]
[1736505203310,0.30259,3304.9,3304.8,4.6618]
[1736505203513,0.9012,3305.2,3304.8,4.6618]
[1736505203710,0.9012,3305.2,3304.9,1.85957935]
[1736505203909,0.4522,3305.2,3305.1,0.30257]
[1736505205713,0.4574,3305.3,3305.2,0.30256]
[1736505206011,0.75995,3305.3,3305.2,0.30256]
[1736505206607,0.30257,3305.2,3305.1,0.30257]
[1736505206802,0.4574,3305.3,3305.2,0.30256]
[1736505206803,0.75996,3305.3,3305.2,0.30256]
[1736505207816,0.4574,3305.3,3305.2,0.30256]
[1736505208019,1.19924,3305.5,3305.2,1.85957935]
[1736505208212,0.30255,3305.4,3305.3,0.30255]
[1736505209218,1.19924,3305.5,3305.3,0.30255]
[1736505209612,0.8967,3305.5,3305.4,0.30255]
[1736505209813,0.74041,3305.8,3305.3,0.30255]
[1736505210012,0.74041,3305.8,3305.6,0.30252]
[1736505210214,0.4379,3305.8,3305.5,1.85957935]
[1736505210413,0.4379,3305.8,3305.7,0.30252]
[1736505211024,0.4379,3305.8,3305.7,3.51032]
[1736505211216,0.75606,3306.8,3305.7,3.2078]
[1736505211513,0.9407,3306.4,3306.3,0.30246]
[1736505214323,0.9407,3306.4,3306.2,2.31547935]
[1736505214324,1.238,3307.0,3306.2,2.31547935]
[1736505214620,0.30242,3306.8,3306.6,0.30243]
[1736505215016,1.3607,3306.9,3306.5,3.51024]
[1736505215017,0.30243,3306.7,3306.5,3.51024]
[1736505215421,1.3607,3306.9,3306.6,0.30243]
[1736505215422,0.30242,3306.8,3306.6,0.30243]
[1736505215717,1.3607,3306.9,3306.5,3.2078]
[1736505215923,0.30244,3306.6,3306.5,3.51024]
[1736505217022,0.30244,3306.6,3306.5,3.2078]
[1736505217623,0.30242,3306.8,3306.5,5.06737935]
[1736505217824,0.30242,3306.8,3306.7,0.30242]
[1736505218215,0.30242,3306.8,3306.6,0.30243]
[1736505218724,1.3607,3306.9,3306.6,0.30243]
[1736505218923,0.4616,3306.9,3306.5,5.06737935]
[1736505219128,0.4616,3306.9,3306.8,2.16199935]
[1736505221527,0.76401,3306.9,3306.6,0.30243]
[1736505221917,0.76401,3306.9,3306.7,0.30243]
[1736505222123,0.4616,3306.9,3306.5,3.2078]
[1736505222322,0.4616,3306.9,3306.8,0.30242]
[1736505222525,0.4616,3306.9,3306.7,1.85957935]
[1736505222825,0.4616,3306.9,3306.7,2.16199935]
[1736505223221,0.76401,3306.9,3306.7,2.16199935]
[1736505226119,0.76401,3306.9,3306.8,0.30242]
[1736505226322,0.4616,3306.9,3306.8,0.30242]
[1736505226522,0.76401,3306.9,3306.8,0.30242]
[1736505226930,0.76401,3306.9,3306.7,2.16199935]
[1736505228130,0.4616,3306.9,3306.7,1.85957935]
[1736505228331,0.4616,3306.9,3306.8,0.30242]
[1736505229230,0.30242,3306.8,3306.6,3.51023]
[1736505229627,0.4616,3306.9,3306.6,3.51023]
[1736505229831,0.30243,3306.7,3306.6,3.51023]
[1736505230128,0.4616,3306.9,3306.6,3.2078]
[1736505230331,0.30243,3306.7,3306.6,2.4909]
[1736505233534,0.30248,3306.1,3306.0,0.30248]
[1736505233730,4.139,3306.6,3305.8,5.06737935]
[1736505233939,0.30248,3306.2,3306.1,0.30248]
[1736505234434,0.30248,3306.2,3305.8,5.06737935]
[1736505234435,4.139,3306.6,3305.8,5.06737935]
[1736505234634,0.30249,3306.1,3306.0,0.30249]
[1736505234831,0.30249,3306.0,3305.9,0.30249]
[1736505235433,0.30249,3306.1,3305.8,5.06737935]
[1736505235637,0.30249,3306.1,3306.0,0.30249]
[1736505237029,0.9312,3306.6,3305.8,5.06737935]
[1736505237336,0.30246,3306.3,3306.2,0.30247]
[1736505237733,0.9312,3306.6,3305.9,1.85957935]
[1736505237932,0.9312,3306.6,3305.9,0.30249]
[1736505237933,0.3025,3306.0,3305.9,0.30249]
[1736505238132,0.30249,3306.1,3306.0,0.30249]
[1736505238732,0.30249,3306.0,3305.9,0.3025]
[1736505238931,1.18199,3306.0,3305.9,0.3025]
[1736505239330,0.8795,3306.0,3305.8,3.2078]
[1736505239640,0.3025,3305.9,3305.8,3.2078]
[1736505242542,0.3025,3305.9,3305.1,0.9199]
[1736505242543,0.30255,3305.4,3305.2,0.30256]
[1736505242738,0.30256,3305.2,3305.1,0.75837]
[1736505242939,1.69486,3305.3,3305.2,0.30256]
[1736505243134,1.3923,3305.3,3305.1,0.4558]
[1736505243336,1.3923,3305.3,3304.9,3.2078]
[1736505243538,1.85957935,3305.0,3304.4,3.2078]
[1736505243836,0.30262,3304.6,3304.4,3.51043]
[1736505244142,0.30262,3304.6,3304.4,3.2078]
[1736505244544,0.30261,3304.7,3304.4,3.51043]
[1736505244741,0.30261,3304.7,3304.5,0.30262]
[1736505245536,0.30261,3304.7,3304.4,3.2078]
[1736505245837,1.228,3305.2,3304.4,3.51043]
[1736505246033,0.30261,3304.7,3304.4,3.51043]
[1736505246632,0.30261,3304.7,3304.5,0.30262]
[1736505246833,1.228,3305.2,3304.4,3.2078]
[1736505247241,0.3026,3304.9,3304.7,0.30261]
[1736505247745,0.30257,3305.1,3304.6,0.30261]
[1736505247944,1.228,3305.2,3304.4,3.2078]
[1736505248245,0.30261,3304.8,3304.5,0.30263]
[1736505248444,0.74101,3304.7,3304.5,0.30262]
[1736505248642,0.74101,3304.7,3304.4,3.2078]
[1736505248842,0.74101,3304.7,3304.6,0.30262]
[1736505249044,0.4384,3304.7,3304.4,3.2078]
[1736505249346,0.30263,3304.5,3304.4,3.2078]
[1736505250643,1.23822,3304.6,3304.4,3.51044]
[1736505250842,0.30263,3304.5,3304.4,3.2078]
[1736505251242,0.3026,3304.9,3304.7,0.30261]
[1736505251647,0.4548,3305.2,3304.6,0.30261]
[1736505251845,0.3026,3304.9,3304.6,0.30261]
[1736505252347,0.30261,3304.7,3304.5,0.8955]
[1736505252548,0.30261,3304.7,3304.5,0.4496]
[1736505253449,0.30261,3304.7,3304.5,0.75223]
[1736505253841,0.3026,3304.8,3304.5,0.75223]
[1736505254042,0.4548,3305.2,3304.5,0.75223]
[1736505254250,0.30261,3304.7,3304.5,0.75223]
[1736505254442,0.30261,3304.8,3304.5,0.75223]
[1736505254843,0.30261,3304.7,3304.5,0.75223]
[1736505255146,0.3026,3304.8,3304.5,0.4496]
[1736505255347,0.30259,3305.0,3304.7,0.30261]
[1736505255547,0.30259,3304.9,3304.7,0.30261]
[1736505255942,0.30259,3304.9,3304.6,0.30261]
[1736505256347,1.21122,3305.2,3304.5,0.4496]
[1736505256543,0.4548,3305.2,3304.5,0.4496]
[1736505256738,0.3026,3304.8,3304.6,0.30262]
[1736505257150,0.4548,3305.2,3304.5,0.4496]
[1736505257448,0.30262,3304.7,3304.5,0.4496]
[1736505257651,0.30262,3304.7,3304.5,0.75223]
[1736505258244,0.4548,3305.2,3304.5,2.30917935]
[1736505258443,0.3026,3304.8,3304.6,0.30262]
[1736505258650,0.3026,3304.8,3304.7,0.4661]
[1736505259448,0.3026,3304.8,3304.7,0.76871]
[1736505259649,0.4548,3305.2,3304.7,0.76871]
[1736505259847,0.30258,3305.1,3304.9,0.30259]
[1736505260152,0.30257,3305.1,3305.0,0.30258]
[1736505260853,0.30256,3305.3,3305.1,0.30257]
[1736505261051,3.51035,3305.4,3305.2,0.30256]
[1736505261350,3.51035,3305.4,3305.2,0.74376]
[1736505261546,0.30255,3305.3,3305.2,0.74376]
[1736505261949,0.30255,3305.3,3305.2,0.4412]
[1736505262350,3.2078,3305.6,3304.8,5.54247935]
[1736505262546,0.75635,3305.5,3304.9,0.30259]
[1736505262745,0.30258,3305.0,3304.9,0.30259]
[1736505264353,0.75635,3305.5,3304.8,5.98367935]
[1736505264652,0.75635,3305.5,3305.0,0.30258]
[1736505264851,0.30258,3305.0,3304.9,0.30258]
[1736505266052,0.75635,3305.5,3304.8,5.98367935]
[1736505266255,0.30259,3305.0,3304.9,0.30259]
[1736505267150,0.30259,3305.0,3304.9,3.51039]
[1736505267348,0.75635,3305.5,3304.9,3.51039]
[1736505267953,0.30259,3305.0,3304.9,3.51039]
[1736505268153,0.30259,3305.0,3304.9,0.30259]
[1736505268351,0.30259,3305.0,3304.9,3.51039]
[1736505271756,0.30258,3305.1,3305.0,0.30258]
[1736505272548,3.2078,3305.7,3304.9,3.2078]
[1736505272755,3.2078,3305.7,3305.1,1.85957935]
[1736505272953,0.30253,3305.6,3305.4,0.30254]
[1736505273155,0.30254,3305.5,3305.4,0.30254]
[1736505274352,0.30255,3305.4,3305.3,0.30255]
[1736505274753,0.30254,3305.5,3305.3,0.30255]
[1736505274950,3.2078,3305.7,3305.3,0.30255]
[1736505275355,0.30255,3305.4,3305.3,0.30255]
[1736505276959,0.30255,3305.4,3304.9,3.2078]
[1736505276960,3.2078,3305.7,3304.9,3.2078]
[1736505277150,0.4432,3305.3,3304.9,3.2078]
[1736505277354,0.4432,3305.3,3305.2,0.30256]
[1736505277556,0.30257,3305.2,3305.1,0.30257]
[1736505277960,1.67326,3305.3,3305.2,0.30256]
[1736505278261,1.67326,3305.3,3305.2,0.80256]
[1736505278656,1.67326,3305.3,3305.2,0.5]
[1736505292474,4.88106,3305.3,3305.2,0.5]
[1736505295784,4.92926771,3305.3,3305.2,0.5]
[1736505295983,4.88106,3305.3,3305.2,0.5]
[1736505300283,1.67326,3305.3,3305.2,0.5]
[1736505300784,0.4432,3305.3,3305.2,0.5]
[1736505301090,0.8749,3305.6,3305.2,5.56737935]
[1736505301387,0.30254,3305.5,3305.4,0.80255]
[1736505301688,0.30254,3305.5,3305.4,0.5]
[1736505302390,3.2078,3305.7,3305.4,0.5]
[1736505302591,3.2078,3305.7,3305.5,0.30253]
[1736505302592,3.51033,3305.7,3305.5,0.30253]
[1736505302783,0.30253,3305.6,3305.4,0.80254]
[1736505304390,3.2078,3305.7,3305.4,0.80254]
[1736505304691,0.30254,3305.5,3305.4,0.80254]
[1736505304993,0.30254,3305.5,3305.4,0.5]
[1736505305993,3.51032,3305.7,3305.5,0.30253]
[1736505306187,0.30252,3305.7,3305.5,0.30253]
[1736505306489,0.3025,3305.9,3305.8,0.30251]
[1736505306787,0.30248,3306.2,3306.0,0.30249]
[1736505306982,0.9254,3306.3,3306.2,0.5]
[1736505307182,10.67003543,3306.4,3306.2,0.5]
[1736505307389,0.30246,3306.3,3306.2,0.5]
[1736505307685,0.30246,3306.4,3306.2,0.80247]
[1736505307892,3.6667,3306.6,3306.2,0.5]
[1736505307893,3.96914,3306.6,3306.2,0.5]
[1736505308090,3.51024,3306.6,3306.4,0.30245]
[1736505308289,3.2078,3306.6,3306.5,0.4769]
[1736505308585,3.2078,3306.6,3306.5,1.27934]
[1736505310286,0.76892,3306.8,3306.5,0.9769]
[1736505310482,0.76892,3306.8,3306.5,1.27934]
[1736505311287,0.30243,3306.7,3306.5,1.27934]
[1736505311685,0.76893,3306.8,3306.5,1.27934]
[1736505313091,0.4595,3307.2,3306.7,1.85957935]
[1736505313286,0.30242,3306.8,3306.5,4.1847]
[1736505313588,0.4721,3307.0,3306.5,4.1847]
[1736505313783,0.7745,3307.0,3306.6,0.4755]
[1736505313981,0.7745,3307.0,3306.8,0.30242]
[1736505314181,0.4721,3307.0,3306.9,0.5]
[1736505314386,3.2078,3307.3,3306.9,0.5]
[1736505314587,3.51018,3307.3,3307.0,0.3024]
[1736505314988,3.51018,3307.3,3307.1,0.9127]
[1736505315185,3.51018,3307.3,3307.2,0.5]
[1736505319900,3.25597537,3307.3,3306.3,0.30246]
[1736505320093,0.30244,3306.6,3306.3,0.30246]
[1736505320288,3.2078,3307.3,3306.4,1.85957935]
[1736505320494,3.2078,3307.3,3306.2,0.9408]
[1736505320495,3.2078,3307.3,3306.7,1.85957935]
[1736505320694,0.30239,3307.1,3306.8,1.24961]
[1736505320894,0.3024,3307.0,3306.8,1.69141]
[1736505321098,3.2078,3306.9,3306.2,0.30246]
[1736505321296,4.1357,3306.9,3306.1,5.06737935]
[1736505321501,0.30244,3306.6,3306.4,0.30245]
[1736505321699,4.1357,3306.9,3306.5,0.4696]
[1736505322395,0.30244,3306.6,3306.5,0.4696]
[1736505323503,0.4454,3306.8,3306.2,0.9194]
[1736505323704,0.30245,3306.5,3306.3,0.74486]
[1736505324402,0.30244,3306.6,3306.3,0.4424]
[1736505324599,0.30245,3306.5,3306.3,0.74486]
[1736505325997,0.30245,3306.5,3306.3,0.4424]
[1736505326302,0.30245,3306.5,3306.3,0.74486]
[1736505326502,0.30245,3306.4,3306.3,0.4424]
[1736505327806,0.30246,3306.3,3306.2,0.4418]
[1736505328205,0.75607,3306.7,3306.2,0.4418]
[1736505328602,0.30245,3306.4,3306.3,0.4488]
[1736505329003,0.30246,3306.3,3306.2,0.4418]
[1736505330106,0.30246,3306.3,3306.2,0.74427]
[1736505333705,0.30246,3306.3,3306.2,0.4418]
[1736505336717,0.30247,3306.2,3306.1,3.2078]
[1736505337115,0.30253,3305.7,3305.6,3.51032]
[1736505337310,0.30253,3305.7,3305.6,3.51033]
[1736505337506,0.47,3306.1,3305.6,3.2078]
[1736505337709,0.30251,3305.9,3305.6,3.2078]
[1736505338012,0.30251,3305.9,3305.8,0.3025]
[1736505338606,0.47,3306.1,3305.6,3.2078]
[1736505338913,0.47,3306.1,3305.8,0.30251]
[1736505338914,0.30251,3305.9,3305.8,0.30251]
[1736505339114,4.1342,3306.4,3305.8,1.85957935]
[1736505339410,0.30247,3306.2,3306.1,0.30248]
[1736505340202,0.9264,3306.4,3306.2,0.30247]
[1736505340203,0.30247,3306.3,3306.2,0.30247]
[1736505340901,0.30247,3306.3,3306.2,41.10247]
[1736505341306,0.4681,3306.4,3306.3,0.30246]
[1736505341509,3.2078,3306.8,3306.6,0.30243]
[1736505341806,0.30242,3306.8,3306.6,0.30244]
[1736505342009,0.30241,3306.9,3306.8,0.30241]
[1736505342405,3.6598,3307.2,3306.8,1.85957935]
[1736505342708,0.3024,3307.1,3307.0,0.3024]
[1736505343312,0.75438,3307.2,3307.1,0.30239]
[1736505343507,0.30239,3307.1,3307.0,0.30239]
[1736505343707,0.452,3307.2,3306.9,3.2078]
[1736505343708,0.75439,3307.2,3307.1,0.30239]
[1736505344010,0.75439,3307.2,3307.0,0.30239]
[1736505344414,0.75439,3307.2,3307.1,0.30239]
[1736505344815,0.75439,3307.2,3306.9,3.2078]
[1736505345114,0.75439,3307.2,3307.1,0.30239]
[1736505346415,0.76257,3307.3,3307.1,0.30239]
[1736505346613,0.4717,3307.6,3307.1,1.85957935]
[1736505346820,0.4769,3307.9,3307.8,0.30233]
[1736505347011,10.67003543,3308.3,3307.8,5.06737935]
[1736505347314,10.67003543,3308.3,3308.1,1.85957935]
[1736505347515,0.30228,3308.4,3308.1,2.16186935]
[1736505347817,0.30228,3308.4,3308.2,0.30228]
[1736505348216,1.4162,3308.5,3308.3,0.30227]
[1736505348519,1.71846,3308.5,3308.1,1.85957935]
[1736505348721,1.71846,3308.5,3308.2,0.30229]
[1736505349512,1.71846,3308.5,3308.1,1.85957935]
[1736505349513,1.4162,3308.5,3308.1,1.85957935]
[1736505349718,1.4162,3308.5,3308.4,0.30227]
[1736505350719,1.4162,3308.5,3308.3,0.30227]
[1736505351210,1.4162,3308.5,3308.4,0.30227]
[1736505351615,1.4162,3308.5,3308.3,0.30228]
[1736505351820,1.71846,3308.5,3308.2,0.30228]
[1736505352219,1.4162,3308.5,3307.8,5.06737935]
[1736505352521,1.4162,3308.5,3308.3,0.30228]
[1736505354321,1.4162,3308.5,3308.4,0.30227]
[1736505355729,3.51001,3309.1,3308.4,1.85957935]
[1736505356025,0.30223,3308.9,3308.6,0.30225]
[1736505356319,0.73242,3309.0,3308.7,0.30224]
[1736505356722,0.30223,3308.9,3308.4,1.85957935]
[1736505357021,0.4302,3309.0,3308.4,1.85957935]
[1736505357522,0.30223,3308.9,3308.6,0.30225]
[1736505358325,0.4302,3309.0,3308.6,0.30225]
[1736505358523,0.30224,3308.8,3308.6,0.30225]
[1736505359023,0.4317,3308.7,3308.3,3.2078]
[1736505359326,0.73496,3308.6,3308.3,3.51007]
[1736505359521,0.30227,3308.5,3308.3,3.51007]
[1736505359726,0.4327,3308.6,3308.3,3.2078]
[1736505359928,0.73496,3308.6,3308.4,0.30227]
[1736505360228,0.4327,3308.6,3308.5,0.30226]
[1736505360418,0.75393,3308.9,3308.7,0.30224]
[1736505361428,0.4517,3308.9,3308.8,0.30223]
[1736505361730,0.75393,3308.9,3308.7,0.30224]
[1736505361931,0.75393,3308.9,3308.8,0.30223]
[1736505362125,0.4517,3308.9,3308.4,1.85957935]
[1736505362337,0.30224,3308.8,3308.7,0.30224]
[1736505362528,0.30224,3308.8,3308.4,1.85957935]
[1736505362824,0.75393,3308.9,3308.8,0.30223]
[1736505363032,0.4517,3308.9,3308.8,0.30223]
[1736505363227,3.2078,3309.1,3308.7,1.85957935]
[1736505363426,3.2078,3309.1,3309.0,0.30222]
[1736505363628,0.30219,3309.3,3308.9,0.30223]
[1736505363838,0.30219,3309.3,3309.1,0.3022]
[1736505364029,0.30219,3309.3,3309.2,0.3022]
[1736505364330,0.4494,3309.4,3309.1,0.3022]
[1736505364532,0.30219,3309.3,3309.1,0.30221]
[1736505366827,0.30219,3309.3,3309.0,40.8]
[1736505367028,0.3022,3309.2,3309.0,41.10221]
[1736505367333,0.30221,3309.1,3308.9,0.30222]
[1736505367826,0.30221,3309.1,3308.8,3.6722]
[1736505368029,0.4494,3309.4,3309.0,0.30222]
[1736505368228,0.4494,3309.4,3308.8,3.6722]
[1736505368433,0.30219,3309.3,3309.1,0.3022]
[1736505370630,0.3022,3309.2,3309.0,0.30221]
[1736505370830,0.3022,3309.3,3309.0,0.30221]
[1736505371133,0.4494,3309.4,3309.0,0.30221]
[1736505371335,0.3022,3309.2,3309.0,0.30221]
[1736505371836,0.30219,3309.3,3309.1,0.30221]